Workbook

Sheet Лист1
A1: 4690655015106 | B1: Бисопролол | C1: Бисопролол-СЗ | D1: таблетки покрытые пленочной оболочкой, 5 мг, 30 шт. (30) - упаковки ячейковые контурные, 4 шт. ~ / пачки картонные | E1: ЗАО "Северная звезда" - Россия | F1: 120 | G1: 288 | H1: ЛСР-005035/08 | I1: =CHOOSE(SUM(-(G1>{50,500}))+3,1.28,1.44,1.54)*G1*1.1 -> 456.192 | J1: =CHOOSE(SUM(-(G1>{50,500}))+3,1.2457,1.395,1.45)*G1*1.1 -> 441.936 | K1: 16.06.2016 (498/20-16)
A2: 3838957011407 | B2: Кетопрофен | C2: Кетонал дуо | D2: капсулы с модифицированным высвобождением, 150 мг, (10) - упаковки ячейковые контурные, 1 шт. ~ / пачки картонные | E2: Лек д.д. - Словения | F2: 10 | G2: 60.35 | H2: ЛСР-008841/08 | I2: =CHOOSE(SUM(-(G2>{50,500}))+3,1.28,1.44,1.54)*G2*1.1 -> 95.5944 | J2: =CHOOSE(SUM(-(G2>{50,500}))+3,1.2457,1.395,1.45)*G2*1.1 -> 92.607075 | K2: 16.06.2016 (497/20-16)
A3: 4630009510635 | B3: Кетопрофен | C3: Кетонал дуо | D3: капсулы с модифицированным высвобождением, 150 мг, (10) - упаковки ячейковые контурные, 2 шт. ~ / пачки картонные | E3: Лек д.д. - Словения | F3: 20 | G3: 120.71 | H3: ЛСР-008841/08 | I3: =CHOOSE(SUM(-(G3>{50,500}))+3,1.28,1.44,1.54)*G3*1.1 -> 191.20464 | J3: =CHOOSE(SUM(-(G3>{50,500}))+3,1.2457,1.395,1.45)*G3*1.1 -> 185.229495 | K3: 16.06.2016 (497/20-16)
A4: 4030855000890 | B4: Лоперамид | C4: Лопедиум | D4: капсулы, 2 мг, (10) - упаковки ячейковые контурные, 1 шт. ~ / коробки картонные | E4: Сандоз д.д. - Словения;Пр.,Перв.Уп.,Втор.Уп.,Вып.к.-Салютас Фарма ГмбХ - Германия. | F4: 10 | G4: 19.58 | H4: П N015863/01 | I4: =CHOOSE(SUM(-(G4>{50,500}))+3,1.28,1.44,1.54)*G4*1.1 -> 33.16852 | J4: =CHOOSE(SUM(-(G4>{50,500}))+3,1.2457,1.395,1.45)*G4*1.1 -> 31.2301 | K4: 16.06.2016 (496/20-16)
A5: 4008500127179 | B5: Празиквантел | C5: Бильтрицид | D5: таблетки покрытые пленочной оболочкой, 600 мг, (6) - флаконы, 1 шт. ~ / пачки картонные | E5: Байер Фарма АГ - Германия | F5: 6 | G5: 309.52 | H5: П N013666/01 | I5: =CHOOSE(SUM(-(G5>{50,500}))+3,1.28,1.44,1.54)*G5*1.1 -> 490.27968 | J5: =CHOOSE(SUM(-(G5>{50,500}))+3,1.2457,1.395,1.45)*G5*1.1 -> 474.95844 | K5: 16.06.2016 (495/20-16)
A6: 4607143560604 | B6: Пипофезин | C6: Азафен | D6: таблетки, 25 мг, 10 шт. (10) - упаковки ячейковые контурные, 5 шт. ~ / пачки картонные | E6: ОАО "Нижфарм" - Россия;Пр.,Перв.Уп.,Втор.Уп.,Вып.к.-ООО "Хемофарм" - Россия. | F6: 50 | G6: 153.62 | H6: ЛС-000325 | I6: =CHOOSE(SUM(-(G6>{50,500}))+3,1.28,1.44,1.54)*G6*1.1 -> 243.33408 | J6: =CHOOSE(SUM(-(G6>{50,500}))+3,1.2457,1.395,1.45)*G6*1.1 -> 235.72989 | K6: 16.06.2016 (501/20-16)

Sheet Какой-то другой лист
A1: 4690655015106 | B1: Бисопролол | C1: Бисопролол-СЗ | D1: таблетки покрытые пленочной оболочкой, 5 мг, 30 шт. (30) - упаковки ячейковые контурные, 4 шт. ~ / пачки картонные | E1: ЗАО "Северная звезда" - Россия | F1: 120 | G1: 288 | H1: ЛСР-005035/08 | I1: =CHOOSE(SUM(-(G1>{50,500}))+3,1.28,1.44,1.54)*G1*1.1 -> 456.192 | J1: =CHOOSE(SUM(-(G1>{50,500}))+3,1.2457,1.395,1.45)*G1*1.1 -> 441.936 | K1: 16.06.2016 (498/20-16)
A2: 3838957011407 | B2: Кетопрофен | C2: Кетонал дуо | D2: капсулы с модифицированным высвобождением, 150 мг, (10) - упаковки ячейковые контурные, 1 шт. ~ / пачки картонные | E2: Лек д.д. - Словения | F2: 10 | G2: 60.35 | H2: ЛСР-008841/08 | I2: =CHOOSE(SUM(-(G2>{50,500}))+3,1.28,1.44,1.54)*G2*1.1 -> 95.5944 | J2: =CHOOSE(SUM(-(G2>{50,500}))+3,1.2457,1.395,1.45)*G2*1.1 -> 92.607075 | K2: 16.06.2016 (497/20-16)
A3: 4630009510635 | B3: Кетопрофен | C3: Кетонал дуо | D3: капсулы с модифицированным высвобождением, 150 мг, (10) - упаковки ячейковые контурные, 2 шт. ~ / пачки картонные | E3: Лек д.д. - Словения | F3: 20 | G3: 120.71 | H3: ЛСР-008841/08 | I3: =CHOOSE(SUM(-(G3>{50,500}))+3,1.28,1.44,1.54)*G3*1.1 -> 191.20464 | J3: =CHOOSE(SUM(-(G3>{50,500}))+3,1.2457,1.395,1.45)*G3*1.1 -> 185.229495 | K3: 16.06.2016 (497/20-16)
A4: 4030855000890 | B4: Лоперамид | C4: Лопедиум | D4: капсулы, 2 мг, (10) - упаковки ячейковые контурные, 1 шт. ~ / коробки картонные | E4: Сандоз д.д. - Словения;Пр.,Перв.Уп.,Втор.Уп.,Вып.к.-Салютас Фарма ГмбХ - Германия. | F4: 10 | G4: 19.58 | H4: П N015863/01 | I4: =CHOOSE(SUM(-(G4>{50,500}))+3,1.28,1.44,1.54)*G4*1.1 -> 33.16852 | J4: =CHOOSE(SUM(-(G4>{50,500}))+3,1.2457,1.395,1.45)*G4*1.1 -> 31.2301 | K4: 16.06.2016 (496/20-16)
A5: 4008500127179 | B5: Празиквантел | C5: Бильтрицид | D5: таблетки покрытые пленочной оболочкой, 600 мг, (6) - флаконы, 1 шт. ~ / пачки картонные | E5: Байер Фарма АГ - Германия | F5: 6 | G5: 309.52 | H5: П N013666/01 | I5: =CHOOSE(SUM(-(G5>{50,500}))+3,1.28,1.44,1.54)*G5*1.1 -> 490.27968 | J5: =CHOOSE(SUM(-(G5>{50,500}))+3,1.2457,1.395,1.45)*G5*1.1 -> 474.95844 | K5: 16.06.2016 (495/20-16)
A6: 4607143560604 | B6: Пипофезин | C6: Азафен | D6: таблетки, 25 мг, 10 шт. (10) - упаковки ячейковые контурные, 5 шт. ~ / пачки картонные | E6: ОАО "Нижфарм" - Россия;Пр.,Перв.Уп.,Втор.Уп.,Вып.к.-ООО "Хемофарм" - Россия. | F6: 50 | G6: 153.62 | H6: ЛС-000325 | I6: =CHOOSE(SUM(-(G6>{50,500}))+3,1.28,1.44,1.54)*G6*1.1 -> 243.33408 | J6: =CHOOSE(SUM(-(G6>{50,500}))+3,1.2457,1.395,1.45)*G6*1.1 -> 235.72989 | K6: 16.06.2016 (501/20-16)

Sheet Лист3
